Workbook

Sheet Cover
A2: ='[3]ROO INPUT'!A3:C3 -> AVISTA UTILITIES
A3: ='[3]ROO INPUT'!A4:C4 -> WASHINGTON NATURAL GAS RESULTS
A4: ='[3]ROO INPUT'!A5:C5 -> TWELVE MONTHS ENDED DECEMBER 31, 2011
A5: ='[3]ROO INPUT'!A6:C6 -> (000'S OF DOLLARS)
E8: Gas Inventory
A9: Line | E9: & JP
A10: No. | D10: DESCRIPTION | E10: Restating
B11: Adjsutment Number | E11: 1.03
B12: Workpaper Reference | E12: G-GI
B14: REVENUES
A15: 1 | B15: Total General Business | E15: 0
A16: 2 | B16: Total Transportation | E16: 0
A17: 3 | B17: Other Revenues | E17: 0
A18: 4 | B18: Total Gas Revenues | E18: =SUM(E15:E17) -> 0
B20: EXPENSES
B21: Production Expenses
A22: 5 | C22: City Gate Purchases | E22: =+(ROUND(GI!F9/1000,0)) -> 88
A23: 6 | C23: Purchased Gas Expense | E23: 0
A24: 7 | C24: Net Nat Gas Storage Trans | E24: 0
A25: 8 | B25: Total Production | E25: =SUM(E22:E24) -> 88
B27: Underground Storage | E27: =+E23-E25 -> -88
A28: 9 | C28: Operating Expenses
A29: 10 | C29: Depreciation/Amortization
A30: 11 | C30: Taxes | E30: 0
A31: 12 | B31: Total Underground Storage | E31: =SUM(E28:E30) -> 0
B33: Distribution
A34: 13 | C34: Operating Expenses | E34: 0
A35: 14 | C35: Depreciation/Amortization | E35: 0
A36: 15 | C36: Taxes | E36: 0
A37: 16 | B37: Total Distribution | E37: =SUM(E34:E36) -> 0
A39: 17 | B39: Customer Accounting | E39: 0
A40: 18 | B40: Customer Service & Information | E40: 0
A41: 19 | B41: Sales Expenses | E41: 0
B43: Administrative & General
A44: 20 | C44: Operating Expenses | E44: 0
A45: 21 | C45: Depreciation/Amortization | E45: 0
A46: 22 | C46: Regulatory Amortizations
A47: 23 | C47: Taxes | E47: 0
A48: 24 | B48: Total Admin. & General | E48: =SUM(E44:E47) -> 0
A49: 25 | B49: Total Gas Expense | E49: =E21+E25+E31+E37+E39+E40+E41+E48 -> 88
A51: 26 | B51: OPERATING INCOME BEFORE FIT | E51: =E18-E49 -> -88
B53: FEDERAL INCOME TAX
A54: 27 | B54: Current Accrual | E54: =ROUND(E51*0.35,0) -> -31
A55: 28 | B55: Debt Interest | E55: =ROUND(+E76*3.08%*-35%,0) -> 116
A56: 29 | B56: Deferred FIT | E56: 0
A57: 30 | B57: Amort ITC
A59: 31 | B59: NET OPERATING INCOME | E59: =ROUND(E51-SUM(E54:E57),0) -> -173
B61: RATE BASE
B62: PLANT IN SERVICE
A63: 32 | C63: Underground Storage | E63: 0
A64: 33 | C64: Distribution Plant | E64: 0
A65: 34 | C65: General Plant | E65: 0
A66: 35 | B66: Total Plant in Service | E66: =SUM(E63:E65) -> 0
B68: ACCUMULATED DEPRECIATION/AMORT
A69: 36 | C69: Underground Storage | E69: 0
A70: 37 | C70: Distribution Plant | E70: 0
A71: 38 | C71: General Plant | E71: 0
A72: 39 | B72: Total Accumulated Depreciation/Amortization | E72: =SUM(E69:E71) -> 0
A73: 40 | B73: NET PLANT | E73: =E66-E72 -> 0
A74: 41 | B74: DEFERRED TAXES | E74: 0
A75: 42 | B75: Net Plant After DFIT | E75: =E73+E74 -> 0
A76: 43 | B76: GAS INVENTORY | E76: =-ROUND(GI!E25/1000,0) -> -10773
A77: 44 | B77: GAIN ON SALE OF BUILDING | E77: 0
A78: 45 | B78: OTHER
A79: 46 | B79: WORKING CAPITAL | E79: 0
A82: 47 | B82: TOTAL RATE BASE | E82: =E75+E76+E77+E79+E78 -> -10773
A83: 48 | B83: RATE OF RETURN
A84: 49 | B84: REVENUE REQUIREMENT | E84: =E90 -> 
D86: Pro Forma Rate of Return
D87: Revenue Conversion Factor
D89: NOI Requirement | E89: =E82*$E$86-E59 -> 173
D90: Revenue Requirement | E90: =E89/$E$87 -> 

Sheet GI
E1: Avista | F1: Staff
A2: WA Pro Forma Period: (01/01/2013-12/31/2013 | C2: Total System Adjustment | E2: Total Washington Adjustment | F2: Total Washington Adjustment | G2: Total Idaho Adjustment
A3: System Contract Demand Allocation Percentages | C3: GDAN | E3: 0.6958 | F3: 0.6958 | G3: =1-E3 -> 0.3042
A5: Jackson Prairie
A6: 2011 O & M | B6: GI-1 | C6: =433103+394503 -> 827606 | E6: =C6*E3 -> 575848.2548 | F6: =+C6*F3 -> 575848.2548
A7: 2013 O & M - Avista | B7: GI-1 | C7: ='[4]GI-1'!O142+'[4]GI-1'!O137 -> 1115327.429 | E7: =C7*E3 -> 776044.8251 | G7: =C7*G3 -> 339282.6039
A8: 2014 O & M - Staff | B8: GI-2 | C8: =+'Staff '!T13 -> 954730.2015 | F8: =+C8*F3 -> 664301.2742 | G8: =C6*G3 -> 251757.7452
A9: 2013 Pro Forma O&M Adjustment | E9: =+E7-E6 -> 200196.5703 | F9: =+F8-F6 -> 88453.01938 | G9: =G7-G8 -> 87524.85871
A11: Net Income Before Taxes | E11: =E9 -> 200196.5703 | F11: =F9 -> 88453.01938 | G11: =G9 -> 87524.85871
A13: Idaho State Income Taxes | B13: 0.018797 | G13: =G11*B13 -> 1645.204769
A15: Net Income before FIT | E15: =E11 -> 200196.5703 | F15: =F11 -> 88453.01938 | G15: =G11-G13 -> 85879.65394
A17: Federal Income Tax | B17: 0.35 | E17: =E15*B17 -> 70068.79961 | F17: =+F15*B17 -> 30958.55678 | G17: =G15*B17 -> 30057.87888
A19: Net Reduction to Income | E19: =E15-E17 -> 130127.7707 | F19: =F15-F17 -> 57494.4626 | G19: =G15-G17 -> 55821.77506
A22: Per Inventory Workpaper:
B23: Dec 2013 AMA --> | C23: 16415871.88 | E23: 11422163.39 | F23: 0
B25: Dec 2011 AMA --> | C25: 15482583 | E25: 10772781 | F25: 0
E27: =+E23-E25 -> 649382.3899 | F27: =-E25 -> -10772781
F28: moved to working Capital
E29: JPS-1 | F29: JPS-1

Sheet Staff
A1: Transaction Analysis Selection: Accounting Period : '2011%' , Organization : 'J06'
A3: Expenditure Organization:J06 | B3: Report Category:OPER | C3: Summary Exp Category:Non-Labor
T4: System | U4: WA
G5: Accounting Period | H5: 201101 | I5: 201102 | J5: 201103 | K5: 201104 | L5: 201105 | M5: 201106 | N5: 201107 | O5: 201108 | P5: 201109 | Q5: 201110 | R5: 201111 | S5: 201112 | T5: Total
A6: Actual | B6: Project Number | C6: Task Number | D6: Vendor Name | E6: Service Desc | F6: Jurisdiction
A7: 2011 O&M | B7: 54502100 | C7: 824000 | D7: NULL | E7: Gas Direct | F7: AN | H7: 30316.94 | I7: 32294.98 | J7: 24924.77 | K7: 27010.55 | L7: 38372.46 | M7: 52406.94 | N7: 26609.68 | O7: 63844.49 | P7: 57889.04 | Q7: -3430.04 | R7: 21272.97 | S7: 61590.06 | T7: 433102.84 | V7: workpaper 1.03-4
B8: 54502101 | C8: 837000 | D8: NULL | E8: Gas Direct | F8: AN | H8: 36432.28 | I8: 24305.07 | J8: 20062.09 | K8: 23569.29 | L8: 49618.35 | M8: 69606.06 | N8: 3219.44 | O8: 31613.18 | P8: 56194.98 | Q8: 11571.38 | R8: 32736.6 | S8: 35574.17 | T8: 394502.89
T9: =T7+T8 -> 827605.73
A10: Staff proposed
A11: 2013 O&M | B11: 54502100 | C11: 824000 | D11: NULL | E11: Gas Direct | F11: AN | H11: 45156.15047 | I11: 46102.89117 | J11: 43566.97857 | K11: 52865.32479 | L11: 38372.46 | M11: 52406.94 | N11: 26609.68 | O11: 63844.49 | P11: 57889.04 | Q11: -3430.04 | R11: 21272.97 | S11: 61590.06 | T11: =SUM(H11:S11) -> 506246.945
B12: 54502101 | C12: 837000 | D12: NULL | E12: Gas Direct | F12: AN | H12: 38096.77866 | I12: 38895.51307 | J12: 36756.0459 | K12: 44600.75884 | L12: 49618.35 | M12: 69606.06 | N12: 3219.44 | O12: 31613.18 | P12: 56194.98 | Q12: 11571.38 | R12: 32736.6 | S12: 35574.17 | T12: =SUM(H12:S12) -> 448483.2565
R13: 12 month O & M | T13: =SUM(T11:T12) -> 954730.2015
A17: Avista proposed | H17: 201301 | I17: 201301 | J17: 201301 | K17: 201301 | L17: 201301 | M17: 201301 | N17: 201301 | O17: 201301 | P17: 201301 | Q17: 201301 | R17: 201301 | S17: 201301
A18: 2013 Budgeted O&M | B18: 54502100 | C18: 824000 | D18: NULL | E18: Gas Direct | F18: AN | H18: 45156.15047 | I18: 46102.89117 | J18: 43566.97857 | K18: 52865.32479 | L18: 48469.74294 | M18: 63008.97521 | N18: 46779.13453 | O18: 54978.58529 | P18: 51005.65554 | Q18: 50667.53386 | R18: 44581.34361 | S18: 57768.08916 | T18: =SUM(H18:S18) -> 604950.4052
B19: 54502101 | C19: 837000 | D19: NULL | E19: Gas Direct | F19: AN | H19: 38096.77866 | I19: 38895.51307 | J19: 36756.0459 | K19: 44600.75884 | L19: 40892.34909 | M19: 53158.6275 | N19: 39466.03764 | O19: 46383.64815 | P19: 43031.81625 | Q19: 42746.55397 | R19: 37611.83277 | S19: 48737.06203 | T19: =SUM(H19:S19) -> 510377.0239
T20: =SUM(T18:T19) -> 1115327.429
K23: Avista Adjustment | P23: (1,115,327-827,606) | T23: =+T20-T9 -> 287721.699 | U23: =+T23*GI!E3 -> 200196.7582 | V23: matched
K24: Staf Adjustment (incremental increase from Jan to Apr., which is 954,730-820,606) | T24: =+SUM(H18:K19)-SUM(H7:K8) -> 127124.4715 | U24: =+T24*GI!E3 -> 88453.20725
V25: workpaper 1.03-2
E27: =+E23-E25 -> 0

Sheet JPS-1
B1: Estimated Inventory
B2: WA/ID
C3: Volumes - Dth | G3: Avg. Cost in | H3: Ending $ | J3: WA | K3: ID
C4: Beg. Inv. | D4: Inject/(Withdr) | E4: End. Inv. | F4: WACOG | G4: Inventory | H4: Inventory | J4: =J30/H30 -> 0.6957999838 | K4: =1-J4 -> 0.3042000162
A6: =MONTH(B6) -> 4 | B6: 2012-04-01 | C6: 0 | D6: =SUM(INDEX($E$58:$F$69,$A6,0)) -> 1230000 | E6: =ROUND(C6+D6,0) -> 1230000 | F6: =J36 -> 3.094 | G6: =IF(E6,SUMPRODUCT(D6:D$6,F6:F$6)/E6,0) -> 3.094 | H6: =E6*G6 -> 3805620 | J6: =$H6*J$4 -> 2647950.334 | K6: 1157669.666
A7: =MONTH(B7) -> 5 | B7: 2012-05-01 | C7: =E6 -> 1230000 | D7: =SUM(INDEX($E$58:$F$69,$A7,0)) -> 1271000 | E7: =ROUND(C7+D7,0) -> 2501000 | F7: =J37 -> 3.048 | G7: =SUMPRODUCT(D$6:D7,F$6:F7)/E7 -> 3.070622951 | H7: =E7*G7 -> 7679628 | J7: 5343485.038 | K7: 2336142.962
A8: 6 | B8: 2012-06-01 | C8: =E7 -> 2501000 | D8: =SUM(INDEX($E$58:$F$69,$A8,0)) -> 1260000 | E8: 3761000 | F8: =J38 -> 3.082 | G8: =SUMPRODUCT(D$6:D8,F$6:F8)/E8 -> 3.074434459 | H8: =E8*G8 -> 11562948 | J8: 8045499.031 | K8: 3517448.969
A9: 7 | B9: 2012-07-01 | C9: =E8 -> 3761000 | D9: 1302000 | E9: 5063000 | F9: 3.212 | G9: =SUMPRODUCT(D$6:D9,F$6:F9)/E9 -> 3.109810784 | H9: 15744972 | J9: =$H9*J$4 -> 10955351.26 | K9: 4789620.738
A10: 8 | B10: 2012-08-01 | C10: =E9 -> 5063000 | D10: 1333000 | E10: 6396000 | F10: 3.254 | G10: =SUMPRODUCT(D$6:D10,F$6:F10)/E10 -> 3.139861476 | H10: 20082554 | J10: 13973440.75 | K10: 6109113.253
A11: 9 | B11: 2012-09-01 | C11: 6396000 | D11: 1308667 | E11: 7704667 | F11: 3.244 | G11: =SUMPRODUCT(D$6:D11,F$6:F11)/E11 -> 3.1575498 | H11: 24327869.75 | J11: 16927331.38 | K11: 7400538.372
A12: 10 | B12: 2012-10-01 | C12: 7704667 | D12: 0 | E12: 7704667 | G12: =G11 -> 3.1575498 | H12: 24327869.75 | J12: 16927331.38 | K12: 7400538.372
A13: 11 | B13: 2012-11-01 | C13: 7704667 | D13: 0 | E13: 7704667 | G13: 3.1575498 | H13: 24327869.75 | J13: 16927331.38 | K13: 7400538.372
A14: 12 | B14: 2012-12-01 | C14: 7704667 | D14: =SUM(INDEX($E$75:$F$86,$A14,0)) -> -1395000 | E14: 6309667 | G14: 3.1575498 | H14: 19923087.78 | J14: =$H14*J$4 -> 13862484.15 | K14: 6060603.625
A15: 1 | B15: 2013-01-01 | C15: 6309667 | D15: -2635000 | E15: 3674667 | G15: 3.1575498 | H15: 11602944.05 | J15: =$H15*J$4 -> 8073328.283 | K15: 3529615.769
A16: 2 | B16: 2013-02-01 | C16: 3674667 | D16: -2100000 | E16: 1574667 | G16: 3.1575498 | H16: 4972089.472 | J16: 3459579.774 | K16: 1512509.698
A17: 3 | B17: 2013-03-01 | C17: 1574667 | D17: -1574667 | E17: 0 | G17: =G16 -> 3.1575498 | H17: 0 | J17: 0 | K17: 0
A18: 4 | B18: 2013-04-01 | C18: 0 | D18: 1230000 | E18: 1230000 | F18: =J49 -> 3.71 | G18: =IF(E18,SUMPRODUCT(D$18:D18,F$18:F18)/E18,0) -> 3.71 | H18: 4563300 | J18: =$H18*J$4 -> 3175144.066 | K18: 1388155.934
A19: 5 | B19: 2013-05-01 | C19: 1230000 | D19: 1271000 | E19: 2501000 | F19: =J50 -> 3.722 | G19: =SUMPRODUCT(D$18:D19,F$18:F19)/E19 -> 3.716098361 | H19: =E19*G19 -> 9293962 | J19: 6466738.609 | K19: 2827223.391
A20: 6 | B20: 2013-06-01 | C20: 2501000 | D20: 1260000 | E20: 3761000 | F20: 3.734 | G20: =SUMPRODUCT(D$18:D20,F$18:F20)/E20 -> 3.722095719 | H20: 13998802 | J20: 9740366.204 | K20: 4258435.796
A21: 7 | B21: 2013-07-01 | C21: 3761000 | D21: 1302000 | E21: 5063000 | F21: 3.832 | G21: =SUMPRODUCT(D$18:D21,F$18:F21)/E21 -> 3.750358681 | H21: 18988066 | J21: 13211896.01 | K21: 5776169.986
A22: 8 | B22: 2013-08-01 | C22: 5063000 | D22: 1333000 | E22: 6396000 | F22: 3.846 | G22: =SUMPRODUCT(D$18:D22,F$18:F22)/E22 -> 3.770291432 | H22: 24114784 | J22: 16779066.32 | K22: 7335717.684
A23: 9 | B23: 2013-09-01 | C23: 6396000 | D23: 1308667 | E23: 7704667 | F23: 3.872 | G23: =SUMPRODUCT(D$18:D23,F$18:F23)/E23 -> 3.787567019 | H23: 29181942.62 | J23: 20304795.2 | K23: 8877147.42
A24: 10 | B24: 2013-10-01 | C24: 7704667 | D24: 0 | E24: 7704667 | G24: =G23 -> 3.787567019 | H24: 29181942.62 | J24: 20304795.2 | K24: 8877147.42
A25: 11 | B25: 2013-11-01 | C25: 7704667 | D25: 0 | E25: =ROUND(C25+D25,0) -> 7704667 | G25: =G24 -> 3.787567019 | H25: 29181942.62 | J25: 20304795.2 | K25: 8877147.42
A26: 12 | B26: 2013-12-01 | C26: 7704667 | D26: =SUM(INDEX($E$75:$F$86,$A26,0)) -> -1395000 | E26: 6309667 | G26: =G25 -> 3.787567019 | H26: =E26*G26 -> 23898286.63 | J26: 16628427.45 | K26: 7269859.182
F28: Dec 2013 AMA --> | H28: =(0.5*H14+0.5*H26+SUM(H15:H25))/12 -> 16415871.88 | J28: =(0.5*J14+0.5*J26+SUM(J15:J25))/12 -> 11422163.39
F29: Jun 2013 AMA --> | H29: =(0.5*H8+0.5*H20+SUM(H9:H19))/12 -> 14328949.46 | K29: =(0.5*K8+0.5*K20+SUM(K9:K19))/12 -> 4358866.659
D30: less: | F30: Dec 2011 AMA --> | H30: =J30+K30 -> 15482583 | J30: 10772781 | K30: 4709802
F31: Difference | J31: =J28-J30 -> 649382.3899 | K31: =K29-K30 -> -350935.341
F32: in $000's | J32: =ROUND(J31/1000,0) -> 649 | K32: =ROUND(K31/1000,0) -> -351
C34: 60-dy avg fwd price+adders, 2-15-2012 | F34: Weighting
C35: AECO | D35: Sumas | E35: Rockies | F35: AECO | G35: Sumas | H35: Rockies | J35: WACOG
B36: =B6 -> 2012-04-01 | C36: 2.97 | D36: 3.07 | E36: 3.13 | F36: 0 | G36: 0.6 | H36: 0.4 | J36: =SUMPRODUCT(C36:E36,F36:H36) -> 3.094
B37: 2012-05-01 | C37: 2.97 | D37: 2.98 | E37: 3.15 | F37: 0 | G37: 0.6 | H37: 0.4 | J37: =SUMPRODUCT(C37:E37,F37:H37) -> 3.048
B38: 2012-06-01 | C38: 2.98 | D38: 3.01 | E38: 3.19 | F38: 0 | G38: 0.6 | H38: 0.4 | J38: 3.082
B39: 2012-07-01 | C39: 3.01 | D39: 3.16 | E39: 3.29 | F39: 0 | G39: 0.6 | H39: 0.4 | J39: 3.212
B40: 2012-08-01 | C40: 3.05 | D40: 3.21 | E40: 3.32 | F40: 0 | G40: 0.6 | H40: 0.4 | J40: 3.254
B41: 2012-09-01 | C41: 3.07 | D41: 3.2 | E41: 3.31 | F41: 0 | G41: 0.6 | H41: 0.4 | J41: 3.244
B42: 2012-10-01 | C42: 6.864341667 | D42: 7.1562 | E42: 4.27645
B43: 2012-11-01
B44: 2012-12-01
B45: 2013-01-01
B46: 2013-02-01
B47: 2013-03-01
B48: 2013-04-01 | C48: 7.075325581 | D48: 7.22055814 | E48: 4.814534884 | F48: 0 | G48: 0 | H48: 0 | J48: =SUMPRODUCT(C48:E48,F48:H48) -> 0
B49: =B18 -> 2013-04-01 | C49: 3.6 | D49: 3.67 | E49: 3.77 | F49: 0 | G49: 0.6 | H49: 0.4 | J49: 3.71
B50: 2013-05-01 | C50: 3.6 | D50: 3.67 | E50: 3.8 | F50: 0 | G50: 0.6 | H50: 0.4 | J50: 3.722
B51: 2013-06-01 | C51: 3.6 | D51: 3.67 | E51: 3.83 | F51: 0 | G51: 0.6 | H51: 0.4 | J51: 3.734
B52: 2013-07-01 | C52: 3.64 | D52: 3.8 | E52: 3.88 | F52: 0 | G52: 0.6 | H52: 0.4 | J52: 3.832
B53: 2013-08-01 | C53: 3.62 | D53: 3.81 | E53: 3.9 | F53: 0 | G53: 0.6 | H53: 0.4 | J53: 3.846
B54: 2013-09-01 | C54: 3.68 | D54: 3.84 | E54: 3.92 | F54: 0 | G54: 0.6 | H54: 0.4 | J54: 3.872
C56: Daily | E56: Monthly | F56: Monthly
C57: Amount | D57: Days | E57: Injection | F57: Withdrawal
B58: 2012-01-01 | C58: -85000 | D58: 31 | E58: =MAX(C58,0)*D58 -> 0 | F58: =MIN(C58,0)*D58 -> -2635000
B59: 2012-02-01 | C59: -75000 | D59: 28 | E59: =MAX(C59,0)*D59 -> 0 | F59: =MIN(C59,0)*D59 -> -2100000
B60: 2012-03-01 | C60: -50795.70968 | D60: 31 | E60: 0 | F60: -1574667
B61: 2012-04-01 | C61: 41000 | D61: 30 | E61: =MAX(C61,0)*D61 -> 1230000 | F61: 0
B62: 2012-05-01 | C62: 41000 | D62: 31 | E62: 1271000 | F62: 0
B63: 2012-06-01 | C63: 42000 | D63: 30 | E63: 1260000 | F63: 0
B64: 2012-07-01 | C64: 42000 | D64: 31 | E64: 1302000 | F64: 0
B65: 2012-08-01 | C65: 43000 | D65: 31 | E65: 1333000 | F65: 0
B66: 2012-09-01 | C66: =43622.2333333333 -> 43622.23333 | D66: 30 | E66: 1308667 | F66: 0
B67: 2012-10-01 | C67: 0 | D67: 31 | E67: 0 | F67: 0
B68: 2012-11-01 | C68: 0 | D68: 30 | E68: 0 | F68: 0
B69: 2012-12-01 | C69: -45000 | D69: 31 | E69: 0 | F69: -1395000
E70: =SUM(E58:E69) -> 7704667 | F70: =SUM(F58:F69) -> -7704667
C73: Daily | E73: Monthly | F73: Monthly
C74: Amount | D74: Days | E74: Injection | F74: Withdrawal
B75: 2013-01-01 | C75: -85000 | D75: 31 | E75: =MAX(C75,0)*D75 -> 0 | F75: =MIN(C75,0)*D75 -> -2635000
B76: 2013-02-01 | C76: -75000 | D76: 28 | E76: =MAX(C76,0)*D76 -> 0 | F76: =MIN(C76,0)*D76 -> -2100000
B77: 2013-03-01 | C77: -50795.70968 | D77: 31 | E77: 0 | F77: -1574667
B78: 2013-04-01 | C78: 41000 | D78: 30 | E78: 1230000 | F78: 0
B79: 2013-05-01 | C79: 41000 | D79: 31 | E79: 1271000 | F79: 0
B80: 2013-06-01 | C80: 42000 | D80: 30 | E80: 1260000 | F80: 0
B81: 2013-07-01 | C81: 42000 | D81: 31 | E81: 1302000 | F81: 0
B82: 2013-08-01 | C82: 43000 | D82: 31 | E82: 1333000 | F82: 0
B83: 2013-09-01 | C83: 43622.23333 | D83: 30 | E83: 1308667 | F83: 0
B84: 2013-10-01 | C84: 0 | D84: 31 | E84: 0 | F84: 0
B85: 2013-11-01 | C85: 0 | D85: 30 | E85: 0 | F85: 0
B86: 2013-12-01 | C86: -45000 | D86: 31 | E86: 0 | F86: -1395000
E87: =SUM(E75:E86) -> 7704667 | F87: =SUM(F75:F86) -> -7704667

Sheet Schedule
A1: WA/ID JP Inventory Synthetic Schedule
A2: Source: Gas Supply
B4: Injection | C4: Withdrawal | D4: End of Month Balance
A5: 2012-02-01 | D5: =B5+C5 -> 0
A6: 2012-03-01 | D6: 0
A7: 2012-04-01 | B7: =41000*30 -> 1230000 | D7: =B7+C7 -> 1230000
A8: 2012-05-01 | B8: =41000*31 -> 1271000 | D8: =+D7+B8+C8 -> 2501000
A9: 2012-06-01 | B9: =42000*30 -> 1260000 | D9: =+D8+B9+C9 -> 3761000
A10: 2012-07-01 | B10: =42000*31 -> 1302000 | D10: 5063000
A11: 2012-08-01 | B11: =43000*31 -> 1333000 | D11: 6396000
A12: 2012-09-01 | B12: =(43000*30)+18667 -> 1308667 | D12: 7704667
A13: 2012-10-01 | D13: 7704667
A14: 2012-11-01 | D14: 7704667
A15: 2012-12-01 | C15: =-45000*31 -> -1395000 | D15: 6309667
A16: 2013-01-01 | C16: =-85000*31 -> -2635000 | D16: 3674667
A17: 2013-02-01 | C17: =-75000*28 -> -2100000 | D17: 1574667
A18: 2013-03-01 | C18: =-45000*31-179667 -> -1574667 | D18: 0
A19: 2013-04-01 | B19: =41000*30 -> 1230000 | D19: 1230000
A20: 2013-05-01 | B20: =41000*31 -> 1271000 | D20: 2501000
A21: 2013-06-01 | B21: =42000*30 -> 1260000 | D21: 3761000
A22: 2013-07-01 | B22: =42000*31 -> 1302000 | D22: 5063000
A23: 2013-08-01 | B23: =43000*31 -> 1333000 | D23: 6396000
A24: 2013-09-01 | B24: =(43000*30)+18667 -> 1308667 | D24: 7704667
A25: 2013-10-01 | D25: 7704667
A26: 2013-11-01 | D26: 7704667
A27: 2013-12-01 | C27: =-45000*31 -> -1395000 | D27: 6309667
A29: * Injections are spread ratably over the injection season and withdrawals are scheduled based on pricing, peak day demand requirements and decline curve considerations. This schedule is synthetic and actuals can differ based on market conditions and variability in actual demand.

Sheet Sheet3
A2: Transaction Analysis Selection: Organization : 'J06' , Summary Exp Category Parameter 1 : 'Non-Labor'
A4: Expenditure Organization:J06 | B4: Report Category:OPER | C4: Summary Exp Category:Non-Labor | E4: * 2005-2010 JACKSON PRAIRIE O & M EXPENSES
B6: *Data not available for periods prior to 2005 in query system.
A7: 0 | B7: 0 | C7: 0 | D7: 0 | E7: Transaction Amount
E8: 200501 | F8: 200502 | G8: 200503 | H8: 200504 | I8: 200505 | J8: 200506 | K8: 200507 | L8: 200508 | M8: 200509 | N8: 200510 | O8: 200511 | P8: 200512 | Q8: TOTAL
A9: Project Number | B9: Task Number | C9: Service Desc | D9: Jurisdiction
B10: 824000 | C10: Gas Direct | D10: AN | E10: 46973.71 | F10: 14889.32 | G10: 22166.84 | H10: 25787.65 | I10: 15375.8 | J10: 19117.32 | K10: 18478.59 | L10: 26654.52 | M10: 21927.4 | N10: 17635.99 | O10: 17111.58 | P10: 24483.96 | Q10: =SUM(E10:P10) -> 270602.68
A11: 54502101 | B11: 837000 | C11: Gas Direct | D11: AN | E11: 40076.14 | F11: 16051.4 | G11: 16423.28 | H11: 20987.98 | I11: 17480.68 | J11: 37248.31 | K11: 20765.1 | L11: 18283.72 | M11: 16668.18 | N11: 21380.53 | O11: 33205.89 | P11: 42966.66 | Q11: =SUM(E11:P11) -> 301537.87
A12: Total | E12: 87049.85 | F12: 30940.72 | G12: 38590.12 | H12: 46775.63 | I12: 32856.48 | J12: 56365.63 | K12: 39243.69 | L12: 44938.24 | M12: 38595.58 | N12: 39016.52 | O12: 50317.47 | P12: 67450.62 | Q12: =SUM(E12:P12) -> 572140.55
P13: AN | Q13: =Q10+Q11 -> 572140.55
A15: 0 | B15: 0 | C15: 0 | D15: 0
E16: 200601 | F16: 200602 | G16: 200603 | H16: 200604 | I16: 200605 | J16: 200606 | K16: 200607 | L16: 200608 | M16: 200609 | N16: 200610 | O16: 200611 | P16: 200612 | Q16: TOTAL
A17: Project Number | B17: Task Number | C17: Service Desc | D17: Jurisdiction
B18: 824000 | C18: Gas Direct | D18: AN | E18: 59497.68 | F18: 21398.96 | G18: 17474.35 | H18: 29932.55 | I18: 10065.85 | J18: 28784.77 | K18: 12955.13 | L18: 57767.41 | M18: -5816.45 | N18: 17662.4 | O18: 0 | P18: 0 | Q18: =SUM(E18:P18) -> 249722.65
A19: 54502101 | B19: 837000 | C19: Gas Direct | D19: AN | E19: 58356.34 | F19: 39478.79 | G19: 20741.97 | H19: 37272.43 | I19: 70915.1 | J19: 12711.07 | K19: 17502.7 | L19: -9701.6 | M19: 16799.67 | N19: 12208.54 | O19: 28743.95 | P19: 21248.17 | Q19: =SUM(E19:P19) -> 326277.13
A20: Total | E20: 117854.02 | F20: 60877.75 | G20: 38216.32 | H20: 67204.98 | I20: 80980.95 | J20: 41495.84 | K20: 30457.83 | L20: 48065.81 | M20: 10983.22 | N20: 29870.94 | O20: 42947.67 | P20: 63593.77 | Q20: =SUM(E20:P20) -> 632549.1
P21: AN | Q21: =Q18+Q19+#REF! -> 
A23: 0 | B23: 0 | C23: 0 | D23: 0
E24: 200701 | F24: 200702 | G24: 200703 | H24: 200704 | I24: 200705 | J24: 200706 | K24: 200707 | L24: 200708 | M24: 200709 | N24: 200710 | O24: 200711 | P24: 200712 | Q24: TOTAL
A25: Project Number | B25: Task Number | C25: Service Desc | D25: Jurisdiction
B26: 824000 | C26: Gas Direct | D26: AN | E26: 24432.36 | F26: 21209.79 | G26: 17592.75 | H26: 25131.2 | I26: 26832.07 | J26: 26030.96 | K26: 25942.34 | L26: 38935.5 | M26: 20905.72 | N26: 22033.32 | O26: 10273.77 | P26: 43856.92 | Q26: =SUM(E26:P26) -> 303176.7
A27: 54502101 | B27: 837000 | C27: Gas Direct | D27: AN | E27: 37744.99 | F27: 19833.1 | G27: 18541.07 | H27: 30309.63 | I27: 65768.78 | J27: -7660.94 | K27: 29913.89 | L27: 19491.91 | M27: 18671.89 | N27: 24336.11 | O27: 17286.64 | P27: 22872.05 | Q27: =SUM(E27:P27) -> 297109.12
A28: Total | E28: 62177.35 | F28: 41042.89 | G28: 36133.82 | H28: 55440.83 | I28: 92600.85 | J28: 18370.02 | K28: 55856.23 | L28: 58427.41 | M28: 39577.61 | N28: 46369.43 | O28: 27560.41 | P28: 66728.97 | Q28: =SUM(E28:P28) -> 600285.82
P29: AN | Q29: =Q26+Q27 -> 600285.82
A31: 0 | B31: 0 | C31: 0 | D31: 0
E32: 200801 | F32: 200802 | G32: 200803 | H32: 200804 | I32: 200805 | J32: 200806 | K32: 200807 | L32: 200808 | M32: 200809 | N32: 200810 | O32: 200811 | P32: 200812 | Q32: TOTAL
A33: Project Number | B33: Task Number | C33: Service Desc | D33: Jurisdiction
B34: 824000 | C34: Gas Direct | D34: AN | E34: 25150.21 | F34: 23150.05 | G34: 27670.2 | H34: 22726.66 | I34: 23711.44 | J34: 25079.29 | K34: 23086.33 | L34: 47860.78 | M34: 0 | N34: 24619.14 | O34: 25638.95 | P34: 53436 | Q34: =SUM(E34:P34) -> 322129.05
A35: 54502101 | B35: 837000 | C35: Gas Direct | D35: AN | E35: 22033.78 | F35: 22537.16 | G35: 19542 | H35: 25191.94 | I35: 22453.79 | J35: 53990.75 | K35: -7621.49 | L35: 21388.98 | M35: 15015.96 | N35: 22996.15 | O35: 29633.03 | P35: 24845.16 | Q35: =SUM(E35:P35) -> 272007.21
A36: Total | E36: 47183.99 | F36: 45687.21 | G36: 47212.2 | H36: 57835.25 | I36: 55620.76 | J36: 88601.12 | K36: 25177.34 | L36: 79540.44 | M36: 22251.69 | N36: 56369.64 | O36: 67442.75 | P36: 89656.66 | Q36: =SUM(E36:P36) -> 682579.05
P37: AN | Q37: =Q34+Q35 -> 594136.26
A39: 0 | B39: 0 | C39: 0 | D39: 0
E40: 200901 | F40: 200902 | G40: 200903 | H40: 200904 | I40: 200905 | J40: 200906 | K40: 200907 | L40: 200908 | M40: 200909 | N40: 200910 | O40: 200911 | P40: 200912 | Q40: TOTAL
A41: Project Number | B41: Task Number | C41: Service Desc | D41: Jurisdiction
B42: 824000 | C42: Gas Direct | D42: AN | E42: 40853.68 | F42: 30267.73 | G42: 19677.84 | H42: 21046.54 | I42: -15965.88 | J42: 25686.09 | K42: 17793.96 | L42: 37994.45 | M42: 18412.09 | N42: 22512.52 | O42: 13242.55 | P42: 46225.62 | Q42: =SUM(E42:P42) -> 277747.19
A43: 54502101 | B43: 837000 | C43: Gas Direct | D43: AN | E43: 43164.92 | F43: 17354.49 | G43: 23434.5 | H43: 31165.54 | I43: -9738.27 | J43: 50882.62 | K43: -8652.29 | L43: 21809.76 | M43: 30253.87 | N43: 37210.9 | O43: 23461.85 | P43: 38041.12 | Q43: =SUM(E43:P43) -> 298389.01
A44: Total | E44: 100993.12 | F44: 54877.37 | G44: 53007.64 | H44: 64606.12 | I44: 64858.67 | J44: 106527.02 | K44: 32781.54 | L44: 87190.81 | M44: 85469.26 | N44: 98386.67 | O44: 63102.48 | P44: 124637.96 | Q44: =SUM(E44:P44) -> 936438.66
P45: AN | Q45: =Q42+Q43 -> 576136.2
A47: 0 | B47: 0 | C47: 0 | D47: 0
E48: 201001 | F48: 201002 | G48: 201003 | H48: 201004 | I48: 201005 | J48: 201006 | K48: 201007 | L48: 201008 | M48: 201009 | N48: 201010 | O48: 201011 | P48: 201012 | Q48: TOTAL
A49: Project Number | B49: Task Number | C49: Service Desc | D49: Jurisdiction
B50: 824000 | C50: Gas Direct | D50: AN | E50: 8681.48 | F50: 23108.64 | G50: 28286.33 | H50: 21348.24 | I50: 27889.24 | J50: 24308.06 | K50: 19116.92 | L50: 45422.9 | M50: 11317.53 | N50: 19400.66 | O50: 16237.26 | P50: 31510.58 | Q50: =SUM(E50:P50) -> 276627.84
A51: 54502101 | B51: 837000 | C51: Gas Direct | D51: AN | E51: 10544.07 | F51: 17282.67 | G51: 24492.41 | H51: 28394.2 | I51: 23178.57 | J51: 39392.42 | K51: 4117.3 | L51: 21660.89 | M51: 23252.89 | N51: 22533.25 | O51: 27648.62 | P51: 27354.05 | Q51: =SUM(E51:P51) -> 269851.34
A52: Total | E52: =SUM(E50:E51) -> 19225.55 | F52: 40391.31 | G52: 52778.74 | H52: 49742.44 | I52: 51067.81 | J52: 63700.48 | K52: 23234.22 | L52: 67083.79 | M52: 34570.42 | N52: 41933.91 | O52: 43885.88 | P52: 58864.63 | Q52: 546479.18

Sheet GI-1
A1: JACKSON PRAIRIE O&M BUDGET - 2012 - 100% -Draft
A2: Prepared 6-8-11 Rev 1
A4: LABOR SUMMARY | C4: Jan | D4: Feb | E4: Mar | F4: Apr | G4: May | H4: Jun | I4: Jul | J4: Aug | K4: Sep | L4: Oct | M4: Nov | N4: Dec | O4: Total
A5: Labor Actual | C5: 138690 | D5: 138690 | E5: 138690 | F5: 138690 | G5: 138690 | H5: 138690 | I5: 138690 | J5: 138690 | K5: 138690 | L5: 138690 | M5: 138690 | N5: 138690 | O5: 1664280
A6: Subtotal Labor | C6: 138690 | D6: 138690 | E6: 138690 | F6: 138690 | G6: 138690 | H6: 138690 | I6: 138690 | J6: 138690 | K6: 138690 | L6: 138690 | M6: 138690 | N6: 138690 | O6: 1664280
A8: LABOR OVERHEAD
A9: Labor OH Actual | C9: 90148.5 | D9: 90148.5 | E9: 90148.5 | F9: 90148.5 | G9: 90148.5 | H9: 90148.5 | I9: 90148.5 | J9: 90148.5 | K9: 90148.5 | L9: 90148.5 | M9: 90148.5 | N9: 90148.5 | O9: 1081782
A10: Subtotal Labor Overhead | C10: 90148.5 | D10: 90148.5 | E10: 90148.5 | F10: 90148.5 | G10: 90148.5 | H10: 90148.5 | I10: 90148.5 | J10: 90148.5 | K10: 90148.5 | L10: 90148.5 | M10: 90148.5 | N10: 90148.5 | O10: 1081782
A11: Subtotal Labor & Overhead | C11: 228838.5 | D11: 228838.5 | E11: 228838.5 | F11: 228838.5 | G11: 228838.5 | H11: 228838.5 | I11: 228838.5 | J11: 228838.5 | K11: 228838.5 | L11: 228838.5 | M11: 228838.5 | N11: 228838.5 | O11: 2746062
A13: CONSUMABLES
A14: Materials - Direct Purchases | C14: 10350 | D14: 10350 | E14: 10350 | F14: 10350 | G14: 19665 | H14: 25875 | I14: 10350 | J14: 10350 | K14: 55890 | L14: 34155 | M14: 10350 | N14: 10350 | O14: 218385
A15: Materials - Stores Issues | C15: 310.5 | D15: 310.5 | E15: 310.5 | F15: 310.5 | G15: 310.5 | H15: 310.5 | I15: 310.5 | J15: 310.5 | K15: 310.5 | L15: 310.5 | M15: 310.5 | N15: 310.5 | O15: 3726
A16: Materials - Stores Overhead | C16: 0 | D16: 0 | E16: 0 | F16: 0 | G16: 0 | H16: 0 | I16: 0 | J16: 0 | K16: 0 | L16: 0 | M16: 0 | N16: 0 | O16: 0
A17: Materials Direct & Stores | C17: 10660.5 | D17: 10660.5 | E17: 10660.5 | F17: 10660.5 | G17: 19975.5 | H17: 26185.5 | I17: 10660.5 | J17: 10660.5 | K17: 56200.5 | L17: 34465.5 | M17: 10660.5 | N17: 10660.5 | O17: 222111
A18: Office & Station Supplies | C18: 13455 | D18: 13455 | E18: 13455 | F18: 13455 | G18: 13455 | H18: 13455 | I18: 13455 | J18: 13455 | K18: 13455 | L18: 13455 | M18: 13455 | N18: 13455 | O18: 161460
A19: Legal Expenses | C19: 310.5 | D19: 310.5 | E19: 310.5 | F19: 310.5 | G19: 310.5 | H19: 310.5 | I19: 9625.5 | J19: 310.5 | K19: 310.5 | L19: 310.5 | M19: 310.5 | N19: 310.5 | O19: 13041
A20: Outside Services | C20: 7762.5 | D20: 23287.5 | E20: 7762.5 | F20: 18112.5 | G20: 28462.5 | H20: 111262.5 | I20: 7762.5 | J20: 9315 | K20: 7762.5 | L20: 27427.5 | M20: 7762.5 | N20: 7762.5 | O20: 264442.5
A21: Regulatory Fees & Permits | C21: 4554 | D21: 0 | E21: 0 | F21: 0 | G21: 0 | H21: 0 | I21: 0 | J21: 68310 | K21: 0 | L21: 0 | M21: 0 | N21: 0 | O21: 72864
A22: Employee Expenses | C22: 1035 | D22: 1035 | E22: 1035 | F22: 1035 | G22: 1035 | H22: 1035 | I22: 1035 | J22: 1035 | K22: 1035 | L22: 1035 | M22: 1035 | N22: 1035 | O22: 12420
A23: Employee Training | C23: 1035 | D23: 1035 | E23: 1035 | F23: 1035 | G23: 1035 | H23: 1035 | I23: 1035 | J23: 1035 | K23: 1035 | L23: 1035 | M23: 1035 | N23: 1035 | O23: 12420
A24: Rent/Lease | C24: 0 | D24: 0 | E24: 0 | F24: 0 | G24: 0 | H24: 0 | I24: 0 | J24: 0 | K24: 0 | L24: 0 | M24: 0 | N24: 86940 | O24: 86940
A25: Miscellaneous | C25: 2070 | D25: 2070 | E25: 2070 | F25: 48645 | G25: 2070 | H25: 2070 | I25: 2070 | J25: 2070 | K25: 2070 | L25: 2070 | M25: 2070 | N25: 2070 | O25: 71415
A26: Vehicle Costs | C26: 1552.5 | D26: 1552.5 | E26: 1552.5 | F26: 1552.5 | G26: 1552.5 | H26: 1552.5 | I26: 1552.5 | J26: 1552.5 | K26: 1552.5 | L26: 1552.5 | M26: 1552.5 | N26: 1552.5 | O26: 18630
A27: Advertising | C27: 0 | D27: 0 | E27: 0 | F27: 0 | G27: 0 | H27: 0 | I27: 0 | J27: 0 | K27: 0 | L27: 0 | M27: 0 | N27: 0 | O27: 0
A28: Hardware & Software | C28: 5175 | D28: 0 | E28: 0 | F28: 0 | G28: 0 | H28: 0 | I28: 10350 | J28: 0 | K28: 0 | L28: 0 | M28: 6210 | N28: 0 | O28: 21735
A29: Service Provider Planning | C29: 0 | D29: 0 | E29: 0 | F29: 0 | G29: 0 | H29: 0 | I29: 0 | J29: 0 | K29: 0 | L29: 0 | M29: 0 | N29: 0 | O29: 0
A30: Corp/Organization Dues | C30: 0 | D30: 0 | E30: 0 | F30: 0 | G30: 0 | H30: 0 | I30: 0 | J30: 0 | K30: 0 | L30: 0 | M30: 0 | N30: 0 | O30: 0
A31: Membership/Donate/Sponsor | C31: 0 | D31: 0 | E31: 0 | F31: 0 | G31: 0 | H31: 0 | I31: 0 | J31: 0 | K31: 0 | L31: 0 | M31: 0 | N31: 0 | O31: 0
A32: OH Small Tools | C32: 0 | D32: 0 | E32: 0 | F32: 0 | G32: 0 | H32: 0 | I32: 0 | J32: 0 | K32: 0 | L32: 0 | M32: 0 | N32: 0 | O32: 0
A33: Subtotal Consumables | C33: 47610 | D33: 53406 | E33: 37881 | F33: 94806 | G33: 67896 | H33: 156906 | I33: 57546 | J33: 107743.5 | K33: 83421 | L33: 81351 | M33: 44091 | N33: 124821 | O33: 957478.5
A35: Subtotal Labor & OH, Consumables | C35: 276448.5 | D35: 282244.5 | E35: 266719.5 | F35: 323644.5 | G35: 296734.5 | H35: 385744.5 | I35: 286384.5 | J35: 336582 | K35: 312259.5 | L35: 310189.5 | M35: 272929.5 | N35: 353659.5 | O35: 3703540.5
A36: Planning Cost Element
A37: Subtotal Labor & OH, Consumables, Planning CE
A39: OTHER
A40: Construction Overhead
A41: Depreciation
A42: Amortization
A43: CIAC
A44: CLX/C.A.R.S. System
A45: Energy Procurement
A46: Low Income
A47: Not Assigned/Unassigned CE's
A48: Other Income
A49: Other Operating Revenues
A50: Settlement CE For Reporting
A51: Taxes
A52: Subtotal Other
A54: TOTAL EXPENSES | O54: 3703540.5
A55: AFUDC
A56: Total Expenses with AFUDC
A58: TRANSFER TO FORECAST CALCULATIONS
A59: Internal Expenses for Construction OH
A60: External Expenses for Construction OH
A61: Total Expenses without Depreciation & Amortization
A69: JACKSON PRAIRIE O&M BUDGET - 2013 - 1/3 SHARE
A70: Prepared 6-8-11
A72: LABOR SUMMARY | C72: Jan | D72: Feb | E72: Mar | F72: Apr | G72: May | H72: Jun | I72: Jul | J72: Aug | K72: Sep | L72: Oct | M72: Nov | N72: Dec | O72: Total
A73: Labor Actual | C73: 46230 | D73: 46230 | E73: 46230 | F73: 46230 | G73: 46230 | H73: 46230 | I73: 46230 | J73: 46230 | K73: 46230 | L73: 46230 | M73: 46230 | N73: 46230 | O73: 554760
A74: Subtotal Labor | C74: 46230 | D74: 46230 | E74: 46230 | F74: 46230 | G74: 46230 | H74: 46230 | I74: 46230 | J74: 46230 | K74: 46230 | L74: 46230 | M74: 46230 | N74: 46230 | O74: 554760
A76: LABOR OVERHEAD
A77: Labor OH Actual | C77: 30049.5 | D77: 30049.5 | E77: 30049.5 | F77: 30049.5 | G77: 30049.5 | H77: 30049.5 | I77: 30049.5 | J77: 30049.5 | K77: 30049.5 | L77: 30049.5 | M77: 30049.5 | N77: 30049.5 | O77: 360594
A78: Subtotal Labor Overhead | C78: 30049.5 | D78: 30049.5 | E78: 30049.5 | F78: 30049.5 | G78: 30049.5 | H78: 30049.5 | I78: 30049.5 | J78: 30049.5 | K78: 30049.5 | L78: 30049.5 | M78: 30049.5 | N78: 30049.5 | O78: 360594
A79: Subtotal Labor & Overhead | C79: 76279.5 | D79: 76279.5 | E79: 76279.5 | F79: 76279.5 | G79: 76279.5 | H79: 76279.5 | I79: 76279.5 | J79: 76279.5 | K79: 76279.5 | L79: 76279.5 | M79: 76279.5 | N79: 76279.5 | O79: 915354
A81: CONSUMABLES
A82: Materials - Direct Purchases | C82: 3450 | D82: 3450 | E82: 3450 | F82: 3450 | G82: 6555 | H82: 8625 | I82: 3450 | J82: 3450 | K82: 18630 | L82: 11385 | M82: 3450 | N82: 3450 | O82: 72795
A83: Materials - Stores Issues | C83: 103.5 | D83: 103.5 | E83: 103.5 | F83: 103.5 | G83: 103.5 | H83: 103.5 | I83: 103.5 | J83: 103.5 | K83: 103.5 | L83: 103.5 | M83: 103.5 | N83: 103.5 | O83: 1242
A84: Materials - Stores Overhead | O84: 0
A85: Materials Direct & Stores | C85: 3553.5 | D85: 3553.5 | E85: 3553.5 | F85: 3553.5 | G85: 6658.5 | H85: 8728.5 | I85: 3553.5 | J85: 3553.5 | K85: 18733.5 | L85: 11488.5 | M85: 3553.5 | N85: 3553.5 | O85: 74037
A86: Office & Station Supplies | C86: 4485 | D86: 4485 | E86: 4485 | F86: 4485 | G86: 4485 | H86: 4485 | I86: 4485 | J86: 4485 | K86: 4485 | L86: 4485 | M86: 4485 | N86: 4485 | O86: 53820
A87: Legal Expenses | C87: 103.5 | D87: 103.5 | E87: 103.5 | F87: 103.5 | G87: 103.5 | H87: 103.5 | I87: 3208.5 | J87: 103.5 | K87: 103.5 | L87: 103.5 | M87: 103.5 | N87: 103.5 | O87: 4347
A88: Outside Services | C88: 2587.5 | D88: 7762.5 | E88: 2587.5 | F88: 6037.5 | G88: 9487.5 | H88: 37087.5 | I88: 2587.5 | J88: 3105 | K88: 2587.5 | L88: 9142.5 | M88: 2587.5 | N88: 2587.5 | O88: 88147.5
A89: Regulatory Fees & Permits | C89: 1518 | D89: 0 | E89: 0 | F89: 0 | G89: 0 | H89: 0 | I89: 0 | J89: 22770 | K89: 0 | L89: 0 | M89: 0 | N89: 0 | O89: 24288
A90: Employee Expenses | C90: 345 | D90: 345 | E90: 345 | F90: 345 | G90: 345 | H90: 345 | I90: 345 | J90: 345 | K90: 345 | L90: 345 | M90: 345 | N90: 345 | O90: 4140
A91: Employee Training | C91: 345 | D91: 345 | E91: 345 | F91: 345 | G91: 345 | H91: 345 | I91: 345 | J91: 345 | K91: 345 | L91: 345 | M91: 345 | N91: 345 | O91: 4140
A92: Rent/Lease | C92: 0 | D92: 0 | E92: 0 | F92: 0 | G92: 0 | H92: 0 | I92: 0 | J92: 0 | K92: 0 | L92: 0 | M92: 0 | N92: 28980 | O92: 28980
A93: Miscellaneous | C93: 690 | D93: 690 | E93: 690 | F93: 16215 | G93: 690 | H93: 690 | I93: 690 | J93: 690 | K93: 690 | L93: 690 | M93: 690 | N93: 690 | O93: 23805
A94: Vehicle Costs | C94: 517.5 | D94: 517.5 | E94: 517.5 | F94: 517.5 | G94: 517.5 | H94: 517.5 | I94: 517.5 | J94: 517.5 | K94: 517.5 | L94: 517.5 | M94: 517.5 | N94: 517.5 | O94: 6210
A95: Advertising | C95: 0 | D95: 0 | E95: 0 | F95: 0 | G95: 0 | H95: 0 | I95: 0 | J95: 0 | K95: 0 | L95: 0 | M95: 0 | N95: 0 | O95: 0
A96: Hardware & Software | C96: 1725 | D96: 0 | E96: 0 | F96: 0 | G96: 0 | H96: 0 | I96: 3450 | J96: 0 | K96: 0 | L96: 0 | M96: 2070 | N96: 0 | O96: 7245
A97: Service Provider Planning | C97: 0 | D97: 0 | E97: 0 | F97: 0 | G97: 0 | H97: 0 | I97: 0 | J97: 0 | K97: 0 | L97: 0 | M97: 0 | N97: 0 | O97: 0
A98: Corp/Organization Dues | C98: 0 | D98: 0 | E98: 0 | F98: 0 | G98: 0 | H98: 0 | I98: 0 | J98: 0 | K98: 0 | L98: 0 | M98: 0 | N98: 0 | O98: 0
A99: Membership/Donate/Sponsor | C99: 0 | D99: 0 | E99: 0 | F99: 0 | G99: 0 | H99: 0 | I99: 0 | J99: 0 | K99: 0 | L99: 0 | M99: 0 | N99: 0 | O99: 0
A100: OH Small Tools | C100: 0 | D100: 0 | E100: 0 | F100: 0 | G100: 0 | H100: 0 | I100: 0 | J100: 0 | K100: 0 | L100: 0 | M100: 0 | N100: 0 | O100: 0
A101: Subtotal Consumables | C101: 15870 | D101: 17802 | E101: 12627 | F101: 31602 | G101: 22632 | H101: 52302 | I101: 19182 | J101: 35914.5 | K101: 27807 | L101: 27117 | M101: 14697 | N101: 41607 | O101: 319159.5
A103: Subtotal Labor & OH, Consumables | C103: 92149.5 | D103: 94081.5 | E103: 88906.5 | F103: 107881.5 | G103: 98911.5 | H103: 128581.5 | I103: 95461.5 | J103: 112194 | K103: 104086.5 | L103: 103396.5 | M103: 90976.5 | N103: 117886.5 | O103: 1234513.5
A104: Planning Cost Element
A105: Subtotal Labor & OH, Consumables, Planning CE
A107: OTHER
A108: Construction Overhead
A109: Depreciation
A110: Amortization
A111: CIAC
A112: CLX/C.A.R.S. System
A113: Energy Procurement
A114: Low Income
A115: Not Assigned/Unassigned CE's
A116: Other Income
A117: Other Operating Revenues
A118: Settlement CE For Reporting
A119: Taxes
A120: Subtotal Other
A122: Pipeline Integrity (Pigging) | O122: 0
A124: TOTAL EXPENSES | C124: 92149.5 | D124: 94081.5 | E124: 88906.5 | F124: 107881.5 | G124: 98911.5 | H124: 128581.5 | I124: 95461.5 | J124: 112194 | K124: 104086.5 | L124: 103396.5 | M124: 90976.5 | N124: 117886.5 | O124: 1234513.5 | P124: 500000
A126: 2011 O&M Split
A127: Operations | B127: 0.5423971377 | C127: 49981.62504 | D127: 51029.53631 | E127: 48222.63113 | F127: 58514.61682 | G127: 53649.31449 | H127: 69742.23757 | I127: 51778.04436 | J127: 60853.70447 | K127: 56456.21968 | L127: 56081.96565 | M127: 49345.3932 | N127: 63941.30018 | O127: 669596.5889
A128: Maintenance | B128: 0.4576028623 | C128: 42167.87496 | D128: 43051.96369 | E128: 40683.86887 | F128: 49366.88318 | G128: 45262.18551 | H128: 58839.26243 | I128: 43683.45564 | J128: 51340.29553 | K128: 47630.28032 | L128: 47314.53435 | M128: 41631.1068 | N128: 53945.19982 | O128: 564916.9111
A129: Total | C129: 92149.5 | D129: 94081.5 | E129: 88906.5 | F129: 107881.5 | G129: 98911.5 | H129: 128581.5 | I129: 95461.5 | J129: 112194 | K129: 104086.5 | L129: 103396.5 | M129: 90976.5 | N129: 117886.5 | O129: 1234513.5
C130: 0 | D130: 0 | E130: 0 | F130: 0 | G130: 0 | H130: 0 | I130: 0 | J130: 0 | K130: 0 | L130: 0 | M130: 0 | N130: 0 | O130: 0
A131: Jurisidictional Split
A132: AN | C132: 0.9034550283 | D132: 0.9034550283 | E132: 0.9034550283 | F132: 0.9034550283 | G132: 0.9034550283 | H132: 0.9034550283 | I132: 0.9034550283 | J132: 0.9034550283 | K132: 0.9034550283 | L132: 0.9034550283 | M132: 0.9034550283 | N132: 0.9034550283 | O132: 0.9034550283
A133: OR | C133: 0.09654497175 | D133: 0.09654497175 | E133: 0.09654497175 | F133: 0.09654497175 | G133: 0.09654497175 | H133: 0.09654497175 | I133: 0.09654497175 | J133: 0.09654497175 | K133: 0.09654497175 | L133: 0.09654497175 | M133: 0.09654497175 | N133: 0.09654497175 | O133: 0.09654497175
A134: Total | C134: 1 | D134: 1 | E134: 1 | F134: 1 | G134: 1 | H134: 1 | I134: 1 | J134: 1 | K134: 1 | L134: 1 | M134: 1 | N134: 1 | O134: 1
A136: Operations
A137: AN | B137: 54502100 824000 | C137: 45156.15047 | D137: 46102.89117 | E137: 43566.97857 | F137: 52865.32479 | G137: 48469.74294 | H137: 63008.97521 | I137: 46779.13453 | J137: 54978.58529 | K137: 51005.65554 | L137: 50667.53386 | M137: 44581.34361 | N137: 57768.08916 | O137: 604950.4052
A138: OR | B138: 54502100 824000 | C138: 4825.474578 | D138: 4926.645142 | E138: 4655.65256 | F138: 5649.292027 | G138: 5179.571552 | H138: 6733.262355 | I138: 4998.90983 | J138: 5875.119179 | K138: 5450.564134 | L138: 5414.431789 | M138: 4764.049593 | N138: 6173.211019 | O138: 64646.18376
C139: 49981.62504 | D139: 51029.53631 | E139: 48222.63113 | F139: 58514.61682 | G139: 53649.31449 | H139: 69742.23757 | I139: 51778.04436 | J139: 60853.70447 | K139: 56456.21968 | L139: 56081.96565 | M139: 49345.3932 | N139: 63941.30018 | O139: 669596.5889 | P139: 0.5423971377
C140: 0 | D140: 0 | E140: 0 | F140: 0 | G140: 0 | H140: 0 | I140: 0 | J140: 0 | K140: 0 | L140: 0 | M140: 0 | N140: 0 | O140: 0
A141: Maintenance
A142: AN | B142: 54502101 837000 | C142: 38096.77866 | D142: 38895.51307 | E142: 36756.0459 | F142: 44600.75884 | G142: 40892.34909 | H142: 53158.6275 | I142: 39466.03764 | J142: 46383.64815 | K142: 43031.81625 | L142: 42746.55397 | M142: 37611.83277 | N142: 48737.06203 | O142: 510377.0239
A143: OR | B143: 54502101 837000 | C143: 4071.096296 | D143: 4156.450618 | E143: 3927.822971 | F143: 4766.124342 | G143: 4369.836421 | H143: 5680.634929 | I143: 4217.41799 | J143: 4956.647381 | K143: 4598.464068 | L143: 4567.980382 | M143: 4019.27403 | N143: 5208.137793 | O143: 54539.88722
C144: 42167.87496 | D144: 43051.96369 | E144: 40683.86887 | F144: 49366.88318 | G144: 45262.18551 | H144: 58839.26243 | I144: 43683.45564 | J144: 51340.29553 | K144: 47630.28032 | L144: 47314.53435 | M144: 41631.1068 | N144: 53945.19982 | O144: 564916.9111 | P144: 0.4576028623
C145: 0 | D145: 0 | E145: 0 | F145: 0 | G145: 0 | H145: 0 | I145: 0 | J145: 0 | K145: 0 | L145: 0 | M145: 0 | N145: 0 | O145: 0
C146: 0 | D146: 0 | E146: 0 | F146: 0 | G146: 0 | H146: 0 | I146: 0 | J146: 0 | K146: 0 | L146: 0 | M146: 0 | N146: 0 | O146: 0
N147: TOTAL AN | O147: =O137+O142 -> 1115327.429
